bitfinex-derivatives/quotes_ETHF0:USTF0_20260204
["timestamp","ask_amount","ask_price","bid_price","bid_amount"]
[1770164349569,2.38676339,2240.0,2238.5,4.85627507]
[1770164349865,2.38676339,2240.0,2238.6,4.09212457]
[1770164350064,2.38676339,2240.0,2238.5,2.986]
[1770164350763,2.38676339,2240.0,2238.5,4.85125912]
[1770164350963,2.38676339,2239.9,2238.7,0.22366]
[1770164351168,2.38676339,2239.9,2238.7,2.08891912]
[1770164351465,2.38676339,2239.9,2239.0,0.22363]
[1770164351662,2.38676339,2240.2,2239.3,0.2236]
[1770164351861,2.38676339,2240.2,2239.3,2.08885912]
[1770164352263,2.38676339,2240.2,2239.3,6.18098369]
[1770164352462,2.38676339,2240.2,2239.4,4.09212457]
[1770164352870,2.38676339,2240.2,2239.3,0.2236]
[1770164353064,2.38676339,2240.2,2239.2,4.09212457]
[1770164353265,2.38676339,2240.2,2239.1,4.09212457]
[1770164353466,2.38676339,2240.2,2239.2,1.85849856]
[1770164354065,2.38676339,2240.2,2239.2,2.08210856]
[1770164354271,2.39112203,2240.5,2239.4,7.14620544]
[1770164354472,2.39112203,2240.5,2239.6,1.85948161]
[1770164354771,2.39112203,2240.5,2239.6,5.95160618]
[1770164354970,2.39112203,2240.5,2239.7,4.09212457]
[1770164355171,2.39112203,2240.5,2239.6,5.95160618]
[1770164355373,2.39112203,2240.5,2239.6,4.09212457]
[1770164355772,2.39112203,2240.5,2239.5,2.992]
[1770164355974,0.00435864,2240.5,2239.7,1.85948161]
[1770164356573,2.39112203,2240.5,2239.7,1.85948161]
[1770164357672,0.00435864,2240.5,2239.7,1.85948161]
[1770164357876,0.00435864,2240.5,2239.7,5.95160618]
[1770164358071,0.00435864,2240.5,2239.7,1.85948161]
[1770164360571,2.37271716,2240.5,2239.6,4.08465992]
[1770164360773,2.37271716,2240.5,2239.7,2.997]
[1770164362177,2.36835852,2241.1,2240.1,1.830657]
[1770164362475,2.36835852,2241.1,2240.0,2.84353]
[1770164363174,0.0042609,2241.1,2240.1,1.82978152]
[1770164363371,15.49363761,2242.5,2241.6,1.82978152]
[1770164363572,14.62818503,2243.8,2241.8,1.82978152]
[1770164363766,14.62818503,2243.8,2241.2,4.501]
[1770164363767,9.063,2243.7,2241.1,2.43423575]
[1770164363972,9.14756456,2242.7,2240.8,7.72194263]
[1770164364171,9.14756456,2242.6,2240.9,6.50842011]
[1770164364376,9.14756456,2242.2,2240.8,0.00324119]
[1770164364571,7.149,2242.5,2240.8,0.00324119]
[1770164364572,0.22331,2242.3,2240.8,0.00324119]
[1770164364772,0.22333,2242.1,2240.8,0.00324119]
[1770164364976,9.14756456,2241.4,2240.1,2.43423575]
[1770164365180,14.62494384,2242.4,2240.1,2.43423575]
[1770164365475,2.36835852,2242.5,2240.7,2.43423575]
[1770164365668,2.36835852,2242.2,2240.8,2.43423575]
[1770164365867,2.36835852,2242.2,2240.9,2.43423575]
[1770164366270,2.36835852,2241.8,2240.8,0.00519717]
[1770164366481,2.36835852,2241.5,2240.8,0.00519717]
[1770164366678,2.36835852,2241.0,2240.3,2.43423575]
[1770164367078,2.36835852,2240.8,2239.8,3.98513926]
[1770164367378,2.36835852,2240.8,2239.8,2.43423575]
[1770164367581,2.37205526,2240.8,2239.8,7.15542977]
[1770164367877,14.62494384,2240.7,2239.8,7.15542977]
[1770164368079,16.99330236,2240.7,2239.8,7.15542977]
[1770164370177,2.36835852,2240.6,2239.8,7.15542977]
[1770164370376,11.51592308,2240.6,2239.8,2.43987291]
[1770164370580,2.36835852,2240.2,2239.8,0.00563716]
[1770164370780,2.36835852,2240.2,2239.2,2.43423575]
[1770164370781,2.36835852,2240.0,2239.2,2.43423575]
[1770164370977,2.36835852,2240.0,2238.9,2.43423575]
[1770164371282,2.36835852,2239.8,2238.9,2.43423575]
[1770164371779,2.36835852,2239.6,2238.8,4.72191754]
[1770164371976,2.36835852,2239.6,2238.8,0.00355263]
[1770164372583,14.62494384,2239.5,2238.8,0.00355263]
[1770164372884,16.99330236,2239.5,2238.8,0.00355263]
[1770164373182,2.36835852,2239.4,2238.8,0.00355263]
[1770164373383,23.7725084,2239.5,2238.8,0.00355263]
[1770164373984,9.14756456,2239.4,2238.8,0.00355263]
[1770164374183,11.51592308,2239.4,2238.8,0.00355263]
[1770164374483,11.51592308,2239.3,2238.8,0.00355263]
[1770164374678,2.36835852,2239.2,2238.5,2.43423575]
[1770164374883,14.62494384,2239.4,2238.6,2.43423575]
[1770164375585,2.36835852,2239.3,2238.4,3.98513926]
[1770164375783,11.51592308,2238.7,2238.1,3.98513926]
[1770164375981,11.51592308,2238.7,2237.9,5.28770688]
[1770164375982,2.36835852,2238.7,2238.0,4.72279008]
[1770164376182,16.99330236,2238.6,2237.7,7.72194263]
[1770164376379,16.99330236,2238.6,2237.8,4.67605318]
[1770164376679,0.00411959,2239.3,2238.2,2.43423575]
[1770164376986,14.62494384,2239.2,2238.3,2.43423575]
[1770164377580,14.62494384,2239.2,2238.3,7.10563957]
[1770164377780,16.99330236,2239.2,2238.4,4.67140382]
[1770164377977,11.51592308,2239.0,2238.2,0.00397638]
[1770164378184,11.51592308,2239.0,2238.2,4.67362042]
[1770164378385,9.14756456,2238.9,2238.2,0.00397638]
[1770164379284,14.62494384,2238.8,2238.2,2.43821213]
[1770164381180,2.37247811,2239.3,2238.2,2.43821213]
[1770164381384,2.37247811,2239.3,2238.2,2.66192213]
[1770164381385,14.62494384,2239.2,2238.2,2.66192213]
[1770164381985,14.62494384,2239.2,2238.5,2.43423575]
[1770164382186,2.36835852,2240.1,2239.0,2.43423575]
[1770164382680,2.36835852,2239.9,2239.0,2.43423575]
[1770164383087,14.13975384,2239.8,2239.0,2.43423575]
[1770164383484,14.13975384,2239.8,2239.1,0.22362]
[1770164383884,14.13975384,2239.8,2239.1,2.65785575]
[1770164384184,2.36835852,2240.2,2239.4,2.43423575]
[1770164384481,2.36835852,2240.7,2239.6,2.43423575]
[1770164384687,2.621,2240.6,2239.6,2.43423575]
[1770164384989,11.51592308,2240.5,2239.6,2.43423575]
[1770164385188,11.51947065,2240.5,2239.6,2.43423575]
[1770164385384,9.14756456,2240.4,2239.6,2.43423575]
[1770164385586,11.51592308,2240.4,2239.6,2.43423575]
[1770164385787,11.51592308,2240.1,2239.3,7.10218316]
[1770164385987,2.36835852,2240.1,2239.3,7.10218316]
[1770164386288,2.36835852,2239.9,2239.0,7.94557263]
[1770164386788,11.51592308,2239.8,2239.1,4.66309432]
[1770164387088,2.36835852,2239.8,2239.0,2.65786575]
[1770164387597,9.14756456,2239.7,2239.0,2.65786575]
[1770164387889,9.14756456,2239.7,2238.9,4.70303768]
[1770164388092,2.36835852,2239.8,2239.0,4.70303768]
[1770164388287,11.51592308,2239.8,2238.8,10.75694263]
[1770164388488,9.14756456,2239.7,2238.9,4.70342892]
[1770164388888,9.14756456,2239.6,2238.9,4.70342892]
[1770164389092,9.14756456,2239.7,2238.9,4.70342892]
[1770164389589,9.14756456,2239.6,2238.9,4.70342892]
[1770164389790,11.51592308,2239.6,2238.9,4.70342892]
[1770164389990,9.14756456,2239.4,2238.9,4.70342892]
[1770164390388,9.14756456,2239.2,2238.9,4.70342892]
[1770164390596,2.30356058,2239.6,2238.8,2.39530329]
[1770164390890,10.288,2240.0,2238.8,2.39530329]
[1770164390891,9.14756456,2239.4,2238.8,7.09950634]
[1770164391091,9.14756456,2239.6,2238.8,2.39530329]
[1770164391487,9.14756456,2239.4,2238.8,7.09951725]
[1770164391791,10.288,2240.0,2239.0,2.39530329]
[1770164391993,11.45112514,2240.0,2239.0,2.39530329]
[1770164392291,9.14756456,2239.9,2239.0,2.39530329]
[1770164392685,9.14756456,2239.8,2239.0,2.39530329]
[1770164392890,9.14756456,2239.9,2239.0,2.39530329]
[1770164393086,9.14756456,2239.8,2239.0,2.39530329]
[1770164393291,11.45112514,2239.7,2238.9,9.99209759]
[1770164393590,2.30356058,2239.7,2238.8,3.27565]
[1770164393893,2.30356058,2239.5,2238.8,7.98381141]
[1770164394495,9.14756456,2239.3,2238.8,4.93181141]
[1770164394696,9.14756456,2239.3,2238.8,7.58992986]
[1770164394893,9.14756456,2239.1,2238.8,7.58992986]
[1770164395094,9.14756456,2239.2,2238.8,7.36627986]
[1770164395293,9.14756456,2239.2,2238.7,4.468]
[1770164395294,9.14756456,2239.2,2238.7,7.12611845]
[1770164395495,9.14756456,2239.1,2238.7,4.468]
[1770164395696,11.4604779,2239.5,2238.7,4.468]
[1770164395896,9.14756456,2239.3,2238.7,4.468]
[1770164396296,12.60091334,2239.8,2238.8,5.12008476]
[1770164396498,2.31291334,2240.4,2239.0,5.12008476]
[1770164396692,10.29154757,2240.5,2239.1,9.84133008]
[1770164396693,2.31291334,2240.0,2239.1,9.84133008]
[1770164396996,2.31291334,2240.0,2239.2,4.72124532]
[1770164397291,9.14756456,2239.9,2239.2,5.12008476]
[1770164397496,2.95924732,2239.8,2239.2,5.28770688]
[1770164397692,5.27216066,2240.2,2239.3,5.28770688]
[1770164398097,2.31646091,2240.5,2239.4,13.30527133]
[1770164398293,2.31646091,2240.5,2239.5,10.01068133]
[1770164398498,2.31291334,2240.2,2239.6,4.72297445]
[1770164398797,2.31291334,2240.1,2239.7,4.72297445]
[1770164399096,2.31291334,2240.0,2239.5,5.28770688]
[1770164399297,2.95924732,2239.9,2239.5,9.96922511]
[1770164399794,2.95924732,2239.8,2239.5,9.96922511]
[1770164399990,2.95924732,2239.9,2239.5,9.96922511]
[1770164400301,2.31291334,2240.3,2239.6,9.96922511]
[1770164400993,2.31291334,2240.3,2239.7,4.68151823]
[1770164401189,2.31291334,2240.3,2239.5,5.28770688]
[1770164401397,2.31291334,2240.3,2239.3,5.51130688]
[1770164401592,0.00354757,2240.5,2239.7,2.22519127]
[1770164401892,2.31291334,2240.6,2239.6,5.28770688]
[1770164401893,2.31291334,2240.9,2240.1,2.00163127]
[1770164402291,2.31291334,2240.9,2240.1,7.55519637]
[1770164402493,2.31646091,2240.9,2240.1,5.3300451]
[1770164402794,2.31291334,2240.7,2240.2,4.68344477]
[1770164402998,2.31608346,2240.7,2240.2,0.00569877]
[1770164403200,2.31291334,2240.4,2240.0,4.63281323]
[1770164403403,2.31291334,2240.4,2239.8,8.4180451]
[1770164404201,2.31291334,2240.4,2239.8,8.42269776]
[1770164404500,2.31291334,2240.4,2239.9,4.63077774]
[1770164404698,2.31291334,2240.4,2240.0,4.63077774]
[1770164404892,2.31291334,2240.4,2239.8,8.42269776]
[1770164405094,0.00317012,2240.7,2239.8,10.40748295]
[1770164405293,0.00317012,2240.7,2240.0,2.20831519]
[1770164405492,2.31291334,2241.1,2240.1,1.98478519]
[1770164405698,2.31646091,2241.1,2240.0,5.5535751]
[1770164405898,2.31646091,2241.1,2240.1,3.99095595]
[1770164406400,2.31291334,2240.9,2240.2,3.99095595]
[1770164406800,2.31646091,2240.9,2240.1,3.99095595]
[1770164407097,2.31646091,2240.7,2240.1,4.62931651]
[1770164407302,2.31646091,2240.7,2239.9,3.99095595]
[1770164407501,2.31291334,2240.5,2239.9,3.99095595]
[1770164407699,2.31646091,2240.5,2239.8,4.63347485]
[1770164407898,2.31291334,2240.1,2239.6,4.468]
[1770164408201,2.31291334,2240.1,2239.7,4.62950907]
[1770164408601,2.31646091,2240.1,2239.7,4.62950907]
[1770164408798,0.00354757,2240.0,2239.7,4.62950907]
[1770164408999,2.31646091,2239.9,2239.7,3.56437799]
[1770164409204,2.31291334,2239.9,2239.2,4.21456595]
[1770164409499,0.00354757,2239.8,2239.2,3.99095595]
[1770164410103,0.00354757,2239.8,2239.2,3.99524896]
[1770164410806,2.31291334,2240.2,2239.3,2.46196631]
[1770164411005,2.31291334,2240.8,2239.5,2.46196631]
[1770164411301,2.31646091,2240.8,2239.6,3.99095595]
[1770164411511,2.31291334,2240.5,2239.6,3.99095595]
[1770164412011,2.31646091,2240.5,2239.6,3.99095595]
[1770164412507,0.00354757,2240.3,2239.6,3.99095595]
[1770164412705,2.31646091,2240.4,2239.6,3.99095595]
[1770164412905,0.00354757,2240.2,2239.6,3.99095595]
[1770164413405,2.31291334,2240.4,2239.6,3.99095595]
[1770164413406,0.00354757,2240.1,2239.6,3.99095595]
[1770164413601,0.00354757,2240.2,2239.6,3.99095595]
[1770164413908,0.00354757,2240.4,2239.7,2.46196631]
[1770164414406,0.00354757,2240.2,2239.6,3.99095595]
[1770164414599,2.31291334,2240.5,2239.6,3.99095595]
[1770164414803,0.00354757,2240.3,2239.6,3.99095595]
[1770164415203,0.00354757,2240.2,2239.6,3.99095595]
[1770164416511,0.00354757,2240.2,2239.6,6.45292226]
[1770164417409,2.31291334,2240.5,2239.6,6.45292226]
[1770164417610,0.00354757,2240.3,2239.6,6.45292226]
[1770164417903,2.31291334,2240.8,2239.7,2.68552631]
[1770164418105,2.31696336,2241.1,2240.1,2.46196631]
[1770164418411,0.00354757,2241.0,2240.2,2.46196631]
[1770164418612,0.00354757,2241.0,2240.2,6.45292226]
[1770164418912,2.31291334,2241.7,2240.7,2.46196631]
[1770164419106,2.31291334,2241.7,2240.8,2.46196631]
[1770164419306,0.00354757,2241.5,2240.8,2.46196631]
[1770164419707,0.00354757,2241.4,2240.8,2.46196631]
[1770164419902,0.00560792,2241.4,2240.8,2.46729761]
[1770164420111,0.00354757,2241.3,2240.8,2.46729761]
[1770164420505,2.31746536,2241.4,2240.8,0.0053313]
[1770164420807,2.31746536,2241.4,2240.3,6.30769889]
[1770164421006,2.31746536,2241.4,2240.3,3.99095595]
[1770164421204,2.31746536,2241.4,2240.3,4.52971041]
[1770164421406,2.31746536,2241.4,2240.1,5.68826294]
[1770164421809,2.31185744,2241.2,2240.1,0.00434706]
[1770164422204,2.31185744,2241.2,2240.1,2.32109]
[1770164422408,2.31185744,2241.2,2240.1,2.54461]
[1770164422709,2.31185744,2241.2,2240.2,2.31674294]
[1770164423607,2.31185744,2241.2,2240.1,4.50399382]
[1770164423813,2.31185744,2241.2,2240.1,0.00434706]
[1770164425406,5.86885744,2241.2,2240.1,0.00434706]
[1770164425610,2.31185744,2241.1,2240.1,0.00434706]
[1770164425910,2.31746536,2241.4,2240.2,2.31674294]
[1770164426110,2.31746536,2241.4,2240.3,2.54024294]
[1770164427110,2.31746536,2241.4,2240.3,7.04218486]
[1770164427312,2.31746536,2241.4,2240.3,2.54024294]
[1770164427610,2.31746536,2241.4,2240.1,0.00434706]
[1770164427812,2.31746536,2241.4,2240.1,3.99530301]
[1770164428012,2.31746536,2241.4,2240.1,0.00434706]
[1770164428212,2.31746536,2241.4,2240.1,2.32109]
[1770164428914,2.31746536,2241.4,2240.1,6.31204595]
[1770164429813,2.31746536,2241.4,2240.2,2.31674294]
[1770164430812,2.31746536,2241.4,2240.3,2.31674294]
[1770164431514,2.31746536,2241.4,2240.4,2.31674294]
[1770164432313,2.31746536,2241.4,2240.6,2.31674294]
[1770164432712,2.31746536,2241.4,2240.4,6.30769889]
[1770164433107,2.31746536,2241.4,2240.5,2.31674294]
[1770164433310,2.31746536,2241.4,2240.6,2.31674294]
[1770164433509,0.00560792,2241.4,2240.6,6.05961889]
[1770164433711,0.00560792,2241.4,2240.7,3.99095595]
[1770164434411,2.31185744,2242.1,2240.8,3.99095595]
[1770164434715,2.31185744,2242.0,2240.9,3.99095595]
[1770164435314,2.31185744,2242.0,2240.9,4.50890953]
[1770164435518,2.31532158,2242.0,2241.0,6.82565247]
[1770164435815,2.31532158,2242.0,2241.0,2.31674294]
[1770164436516,2.53866158,2242.0,2240.5,3.99095595]
[1770164436815,2.31185744,2241.8,2240.4,6.30769889]
[1770164437316,2.53520744,2241.8,2240.5,4.50294474]
[1770164437511,2.53520744,2241.8,2240.4,2.31674294]
[1770164439014,2.31185744,2241.8,2240.5,2.54022294]
[1770164439214,2.31185744,2241.8,2240.7,2.31674294]
[1770164439720,2.619,2242.7,2241.2,2.31674294]
[1770164440720,2.62360267,2242.7,2241.2,2.31674294]
[1770164440923,2.62360267,2242.7,2241.2,2.54015294]
[1770164441419,2.62360267,2242.7,2241.4,2.31674294]
[1770164441719,2.31185744,2242.6,2241.4,2.31674294]
[1770164443016,0.00460267,2242.7,2241.7,2.31674294]
[1770164443216,0.57273705,2243.5,2241.7,2.31674294]
[1770164443217,2.31185744,2244.0,2242.7,2.31674294]
[1770164443410,2.31185744,2244.0,2242.4,5.49574294]
[1770164443610,2.31185744,2243.5,2242.4,2.31674294]
[1770164444018,2.38948221,2243.5,2242.4,2.31674294]
[1770164444214,2.31185744,2243.3,2242.1,6.82167976]
[1770164444418,2.31185744,2243.2,2242.1,2.31674294]
[1770164444618,2.38948221,2243.2,2242.1,2.31674294]
[1770164444824,0.0037666,2243.5,2242.8,2.31674294]
[1770164445519,0.0037666,2243.5,2242.6,2.31674294]
[1770164445714,2.31185744,2244.0,2242.6,2.31674294]
[1770164446020,2.31185744,2244.3,2242.7,2.31674294]
[1770164446222,2.31185744,2244.3,2242.8,2.31674294]
[1770164446824,2.31576841,2244.3,2242.8,2.31674294]
[1770164448725,2.53497744,2244.1,2242.8,2.31674294]
[1770164449125,2.53497744,2244.1,2242.5,2.31674294]
[1770164449724,2.31185744,2243.9,2242.5,2.31674294]
[1770164450420,2.31185744,2243.9,2242.5,2.54002294]
[1770164456237,2.53500744,2243.9,2242.2,2.37257864]
[1770164456631,0.22315,2243.8,2242.2,2.37257864]
[1770164456836,2.32984407,2243.7,2242.2,2.37257864]
[1770164458234,2.32984407,2243.5,2242.2,2.37257864]
[1770164458439,2.32984407,2243.3,2242.2,2.37257864]
[1770164458939,2.55305407,2243.3,2241.8,2.37257864]
[1770164460239,2.32984407,2243.3,2242.1,2.37257864]
[1770164460741,2.32984407,2242.8,2241.7,0.0048587]
[1770164460936,0.22325,2242.9,2241.7,0.0048587]
[1770164460937,2.32984407,2242.6,2241.7,0.0048587]
[1770164461242,0.00372936,2242.6,2241.8,2.37257864]
[1770164461542,0.00372936,2242.6,2241.8,2.59592864]
[1770164462042,0.00372936,2242.6,2241.8,2.5991562]
[1770164462344,2.33357343,2242.6,2241.8,0.00322756]
[1770164462643,0.00372936,2242.6,2241.8,2.3758062]
[1770164464240,2.33357343,2242.6,2241.8,2.3758062]
[1770164464438,2.33357343,2242.6,2241.8,0.00322756]
[1770164465649,2.33357343,2242.6,2241.8,2.3758062]
[1770164466547,0.00372936,2242.6,2241.8,2.3758062]
[1770164469255,2.32984407,2242.5,2241.5,2.37257864]
[1770164469749,2.62072936,2242.6,2241.5,2.37257864]
[1770164469951,0.00372936,2242.6,2241.8,2.37257864]
[1770164470351,0.00372936,2242.6,2241.9,2.37257864]
[1770164472555,0.00372936,2242.6,2241.8,0.00435855]
[1770164472761,2.33357343,2242.6,2241.8,0.00435855]
[1770164474856,2.33357343,2242.6,2241.2,9.83981053]
[1770164474857,2.32984407,2242.4,2241.2,2.37257864]
[1770164475859,2.32984407,2242.4,2241.2,2.3776138]
[1770164478263,0.00372936,2242.6,2241.4,2.59596864]
[1770164478464,0.00372936,2242.6,2241.5,2.37257864]
[1770164479164,0.00372936,2242.6,2241.7,2.37257864]
[1770164479367,0.00372936,2242.6,2241.8,2.37257864]
[1770164481173,2.49494133,2242.6,2241.5,5.04847144]
[1770164481374,2.49494133,2242.6,2241.6,2.40761647]
[1770164481772,0.00372936,2242.6,2241.6,2.40761647]
[1770164482674,2.49494133,2242.6,2241.6,2.40761647]
[1770164483871,0.00372936,2242.6,2241.6,2.40761647]
[1770164484074,0.00372936,2242.6,2241.7,2.40761647]
[1770164485176,0.00372936,2242.6,2241.7,5.04847144]
[1770164485475,0.00372936,2242.6,2241.8,2.40761647]
[1770164486577,2.49121197,2243.2,2242.1,2.40761647]
[1770164487376,2.49121197,2243.0,2241.9,2.40761647]
[1770164487676,2.49551062,2243.0,2241.9,2.40761647]
[1770164489373,2.71875062,2243.0,2241.9,2.40761647]
[1770164490278,2.49121197,2242.8,2241.6,2.40761647]
[1770164491680,2.71447197,2242.8,2241.6,2.40761647]
[1770164492281,2.49121197,2242.6,2241.6,2.40761647]
[1770164492478,0.2233,2242.3,2241.6,2.40761647]
[1770164492677,2.71451197,2242.3,2241.3,2.40761647]
[1770164493475,2.697,2242.5,2241.3,2.40761647]
[1770164493680,6.46821197,2242.6,2241.4,5.04847144]
[1770164493879,6.46821197,2242.6,2241.5,2.40761647]
[1770164494475,2.49121197,2242.5,2241.5,2.40761647]
[1770164501988,10.82561037,2242.6,2241.5,2.40761647]
[1770164502185,4.20028,2242.6,2241.5,2.40761647]
[1770164502784,6.325,2242.9,2241.7,2.40761647]
[1770164503091,0.00429865,2243.0,2242.1,2.40761647]
[1770164503791,0.00429865,2243.0,2242.2,2.40761647]
[1770164504491,0.00429865,2243.0,2242.3,2.40761647]
[1770164511700,2.4024524,2243.0,2241.8,4.96827364]
[1770164511899,0.00429865,2243.0,2241.9,2.32741867]
[1770164512800,2.4024524,2243.0,2241.9,2.32741867]
[1770164514702,0.00429865,2243.0,2241.9,2.32741867]
[1770164515705,0.00429865,2243.0,2242.2,2.37005772]
[1770164519400,2.55438784,2242.9,2241.9,2.37005772]
[1770164519601,0.22325,2242.9,2241.9,2.37005772]
[1770164519801,2.55438784,2242.9,2241.9,2.37005772]
[1770164520400,2.33113784,2242.9,2241.9,2.37005772]
[1770164520606,0.00429865,2243.0,2241.9,2.37005772]
[1770164520800,2.33543649,2243.0,2241.9,2.37005772]
[1770164521307,2.33113784,2242.7,2241.6,2.37005772]
[1770164521507,4.512,2242.6,2241.6,2.37005772]
[1770164522000,6.84313784,2242.6,2241.6,2.37005772]
[1770164523002,2.33113784,2242.5,2241.6,2.37005772]
[1770164523407,2.33113784,2242.4,2241.3,2.37005772]
[1770164524408,4.463,2242.5,2241.3,2.37005772]
[1770164524604,4.511,2242.6,2241.4,2.37005772]
[1770164524804,4.46729865,2243.0,2241.6,2.37005772]
[1770164525004,3.217,2242.8,2241.6,2.37005772]
[1770164525200,2.33113784,2242.7,2241.6,2.37005772]
[1770164525707,3.44026,2242.8,2241.6,2.37005772]
[1770164526508,5.77139784,2242.8,2241.6,2.37005772]
[1770164528007,2.33113784,2242.7,2241.6,2.37005772]
[1770164529110,3.44026,2242.8,2241.6,2.37005772]
[1770164529310,6.79843649,2243.0,2241.7,2.37005772]
[1770164529311,0.00429865,2243.0,2241.7,2.37005772]
[1770164530003,2.33543649,2243.0,2241.8,2.37005772]
[1770164532809,2.33113784,2242.9,2241.8,2.37005772]
[1770164533110,2.33113784,2242.5,2241.5,2.37005772]
[1770164533311,4.527,2242.4,2241.5,2.37005772]
[1770164533611,6.85813784,2242.4,2241.5,2.37005772]
[1770164534207,4.527,2242.4,2241.5,2.37005772]
[1770164538016,6.84859037,2242.8,2241.5,2.37005772]
[1770164538212,0.22326,2242.8,2241.6,2.37005772]
[1770164538814,6.325,2242.9,2241.7,2.37005772]
[1770164539115,6.325,2242.9,2241.8,2.37005772]
[1770164539413,2.33113784,2243.4,2242.1,5.03631853]
[1770164539617,6.86413784,2243.4,2242.2,2.37005772]
[1770164539817,2.33113784,2243.3,2242.2,2.37005772]
[1770164540211,2.33113784,2243.1,2241.9,2.37005772]
[1770164540615,2.33452631,2243.1,2241.9,2.37005772]
[1770164541518,0.22324,2243.0,2241.9,2.37005772]
[1770164541720,2.59673174,2243.0,2241.9,2.37005772]
[1770164542919,0.00338847,2243.1,2241.9,2.37005772]
[1770164543121,4.546,2243.0,2242.0,2.42167856]
[1770164543422,4.546,2243.0,2242.1,2.42167856]
[1770164543616,0.00338847,2243.1,2242.1,2.42167856]
[1770164543821,0.00338847,2243.1,2242.2,2.42167856]
[1770164544615,0.00338847,2243.1,2242.3,2.42167856]
[1770164547018,0.22325,2242.9,2242.0,2.42167856]
[1770164547324,0.22325,2242.9,2241.6,2.66626081]
[1770164547325,2.59675174,2242.8,2241.8,2.42167856]
[1770164547519,6.79349174,2242.7,2241.8,2.42167856]
[1770164547721,2.37349174,2242.6,2241.4,2.42167856]
[1770164548022,2.59677174,2242.6,2241.4,2.42167856]
[1770164548516,2.37349174,2242.4,2241.4,2.42167856]
[1770164548823,2.37349174,2241.9,2240.8,2.42167856]
[1770164549023,4.539,2241.8,2240.8,2.42167856]
[1770164549922,4.539,2241.8,2240.8,2.42623907]
[1770164550228,2.37349174,2241.7,2240.8,2.42623907]
[1770164550723,2.37349174,2241.7,2240.1,9.61444241]
[1770164550724,2.37349174,2241.7,2240.5,2.42167856]
[1770164550915,2.37349174,2241.4,2240.5,2.42167856]
[1770164551316,2.37349174,2241.4,2240.2,2.42167856]
[1770164551521,2.73379511,2241.4,2240.2,2.42167856]
[1770164552022,2.73760077,2241.4,2240.2,2.42705836]
[1770164552624,2.96100077,2241.4,2240.2,2.42705836]
[1770164553024,2.6006974,2241.4,2240.2,2.42705836]
[1770164553727,2.96427886,2241.4,2240.2,2.42705836]
[1770164555423,2.6006974,2241.4,2240.2,2.42705836]
[1770164555626,0.00380566,2241.4,2240.2,2.42705836]
[1770164556622,2.3772974,2241.4,2240.2,2.42705836]
[1770164557919,2.6006874,2241.4,2240.2,2.42705836]
[1770164558123,2.3772974,2241.4,2240.2,2.42705836]
[1770164558823,2.37349174,2241.2,2240.2,2.42705836]
[1770164559025,2.59691174,2241.2,2240.2,2.42705836]
[1770164563928,2.84242,2241.2,2240.2,2.42705836]
[1770164565027,2.37349174,2241.1,2240.2,2.42705836]
[1770164565332,2.59691174,2241.1,2240.2,2.42705836]
[1770164567232,0.22342,2241.1,2240.2,2.42705836]
[1770164567531,2.619,2241.2,2240.2,2.42705836]
[1770164567725,4.99249174,2241.2,2240.2,2.42705836]
[1770164568128,2.619,2241.2,2240.2,2.42705836]
[1770164570036,3.01419566,2241.4,2240.2,2.42705836]
[1770164570836,5.53582657,2241.4,2240.2,2.42705836]
[1770164571533,5.31243657,2241.4,2240.2,2.42705836]
[1770164572532,2.79080566,2241.4,2240.2,2.42705836]
[1770164573839,0.00380566,2241.4,2240.2,2.42705836]
[1770164575134,0.00380566,2241.4,2240.2,2.65056836]
[1770164576135,2.48966798,2241.4,2240.2,6.93781393]
[1770164576339,2.48966798,2241.4,2240.3,2.31193933]
[1770164576841,0.00380566,2241.4,2240.3,2.31193933]
[1770164577142,0.00380566,2241.4,2240.3,4.96352016]
[1770164577440,0.00380566,2241.4,2240.4,2.31193933]
[1770164578443,0.00380566,2241.4,2240.4,4.96352016]
[1770164578640,0.00380566,2241.4,2240.5,4.96352016]
[1770164578841,2.619,2241.8,2240.7,2.31193933]
[1770164579036,2.70920232,2242.0,2240.8,2.31193933]
[1770164579238,7.21620232,2242.0,2240.8,2.31193933]
[1770164579539,2.48586232,2241.9,2240.8,2.31193933]
[1770164579739,2.48931674,2241.9,2240.8,2.31193933]
[1770164582841,0.00345442,2241.9,2240.8,2.31193933]
[1770164583243,0.00345442,2241.9,2241.0,2.31193933]
[1770164583445,0.22329,2242.5,2241.3,2.31193933]
[1770164583844,6.09686232,2242.6,2241.4,2.31193933]
[1770164584439,6.10100009,2242.6,2241.4,2.31193933]
[1770164586042,3.61513777,2242.6,2241.4,2.31193933]
[1770164586447,2.48586232,2243.1,2241.6,2.65158083]
[1770164586642,4.251,2243.0,2241.7,2.31193933]
[1770164586951,4.251,2243.0,2241.8,2.31193933]
[1770164587545,4.25434484,2243.0,2241.8,2.31771949]
[1770164590757,0.00334484,2243.0,2241.8,2.31771949]
[1770164590956,0.00334484,2243.0,2242.0,2.31193933]
[1770164591150,10.288,2243.8,2242.3,2.31193933]
[1770164591358,5.10386232,2243.9,2242.3,2.31193933]
[1770164591855,2.618,2243.9,2242.3,2.31193933]
[1770164592051,2.48586232,2243.8,2242.3,2.31193933]
[1770164592258,2.71297234,2243.8,2242.3,2.31193933]
[1770164592848,0.00395002,2243.8,2242.7,2.31193933]
[1770164594358,0.00395002,2243.8,2242.7,2.53519933]
[1770164594857,2.48586232,2244.3,2242.9,2.31193933]
[1770164595051,2.48586232,2244.4,2242.9,2.31193933]
[1770164595453,2.84860415,2244.4,2242.9,2.31193933]
[1770164595953,2.85253826,2244.4,2242.9,2.31193933]
[1770164596850,0.00393411,2244.4,2242.9,2.53517933]
[1770164597051,0.00393411,2244.4,2242.9,2.31193933]
[1770164597357,2.48586232,2244.9,2243.5,2.31193933]
[1770164597558,5.10286232,2245.1,2243.5,2.31193933]
[1770164597759,2.617,2245.1,2243.7,2.31193933]
[1770164598060,2.48586232,2245.0,2243.7,2.31193933]
[1770164598259,2.48586232,2244.7,2243.7,2.31193933]
[1770164598452,2.49013506,2244.7,2243.7,2.31636532]
[1770164598651,0.00427274,2244.7,2243.7,2.31636532]
[1770164600762,2.34715602,2244.7,2243.7,2.31636532]
[1770164601059,0.00427274,2244.7,2243.7,2.31636532]
[1770164601264,2.34288328,2245.4,2243.7,2.31636532]
[1770164601456,2.617,2245.5,2244.0,2.30198654]
[1770164601660,2.617,2245.5,2244.0,2.52511654]
[1770164602163,2.34288328,2245.4,2244.0,2.30198654]
[1770164602562,2.62223072,2245.5,2244.0,2.30198654]
[1770164603065,4.965114,2245.5,2244.0,2.30198654]
[1770164603556,2.348114,2245.5,2244.0,2.30198654]
[1770164604767,2.571104,2245.5,2244.0,2.30198654]
[1770164605164,0.00523072,2245.5,2244.0,4.92685361]
[1770164605364,0.00523072,2245.5,2244.1,2.30198654]
[1770164605760,0.00523072,2245.5,2244.5,2.30198654]
[1770164607165,2.348114,2245.5,2244.5,2.30198654]
[1770164607365,0.00523072,2245.5,2244.5,2.30198654]
[1770164607866,2.34288328,2245.3,2244.1,2.30198654]
[1770164609069,2.348114,2245.5,2244.1,2.30198654]